Cogmind - Beta 16 @@@ ROGUE MODE // 2025.10.31 @ 00:08:03 Player: Roadie Result: Destroyed by D-53 Grenadier with Mini Grenade Launcher Performance ------------- Evolutions (0) 0 Regions Visited (4) 800 Robots Destroyed (12) 60 Value Destroyed (371) 371 Prototype IDs (0) 0 Alien Tech Used (0) 0 Bonus (387) 387 TOTAL SCORE: 1618 Bonus ------- Follower Combat Kills 99 Aligned with FarCom 300 Friendly Fire -12 Cogmind --------- Core Integrity 0/250 Matter 262/300 Energy 250/250 System Corruption 0% Temperature Cool (0) Movement Walking (190) Ox1 Location -9/Mines Parts ------- > --- POWER (1) -------- Ion Engine > --- PROPULSION (2) --- Aluminum Leg > --- UTILITY (2) ------ Improved Heat Sink Medium Storage Unit > --- WEAPON (2) ------- (None) > --- INVENTORY (10) --- Ion Engine Light Ion Engine Flying Fortress v7 Humpback Small Laser Peak State ------------ > --- POWER ------------ Ion Engine > --- PROPULSION ------- Aluminum Leg Aluminum Leg > --- UTILITY ---------- Improved Heat Sink Medium Storage Unit > --- WEAPON ----------- Particle Gun Rocket Launcher > --- INVENTORY -------- Ion Engine Light Ion Engine Flying Fortress v7 Humpback Small Laser [Rating: 14] Favorites ----------- Power Ion Engine Engine Ion Engine Propulsion Aluminum Leg Leg Aluminum Leg Wheel Compact Wheel Utility Small Storage Unit Device Structural Scanner Storage Small Storage Unit Weapon Small Laser Energy Gun Small Laser Ballistic Gun Light Assault Rifle Launcher Rocket Launcher Build | -11 -10 -10 -10 -9 ------- Run | Yrd Mat Min Exi Min Slots Evolved . | . . . . . Power . | . . . . . Propulsion . | . . . . . Utility . | . . . . . Weapon . | . . . . . Parts Attached 20 | 6 2 11 . 1 Power 2 | 1 . 1 . . Engine 2 | 1 . 1 . . Core . | . . . . . Reactor . | . . . . . Propulsion 5 | 2 . 3 . . Treads . | . . . . . Leg 3 | . . 3 . . Wheel 2 | 2 . . . . Hover . | . . . . . Flight . | . . . . . Utility 4 | 1 1 2 . . Device 2 | . 1 1 . . Storage 2 | 1 . 1 . . Processor . | . . . . . Hackware . | . . . . . Protection . | . . . . . Artifact . | . . . . . Weapon 9 | 2 1 5 . 1 Energy Gun 7 | 2 1 4 . . Energy Cannon . | . . . . . Ballistic Gun 1 | . . 1 . . Ballistic Cannon . | . . . . . Launcher 1 | . . . . 1 Special Weapon . | . . . . . Impact Weapon . | . . . . . Slashing Weapon . | . . . . . Piercing Weapon . | . . . . . Special Melee Weapon . | . . . . . Unidentified Prototypes . | . . . . . Parts Lost 6 | . . 3 . 3 Power . | . . . . . Propulsion 2 | . . 1 . 1 Utility . | . . . . . Weapon 4 | . . 2 . 2 Highest Loss Streak 3 | . . 3 . 3 To Critical Strikes . | . . . . . Average Backups 4 | 3 4 4 4 4 Power 1 | . 1 1 2 2 Propulsion . | 1 2 . . 1 Utility 1 | . . 1 1 1 Weapon 1 | 1 1 1 . . Tool/Special . | . . . . . Unused Backups 5 | . . 1 1 3 Power 1 | . . . . 1 Propulsion 1 | . . . . 1 Utility 3 | . . 1 1 1 Weapon . | . . . . . Tool/Special . | . . . . . Average Slot Usage (%) 99 | . 98 98 100 100 Engine 14 | . 14 14 14 14 Leg 21 | . . 23 28 28 Wheel 6 | . 28 4 . . Device 13 | . 12 14 14 14 Storage 14 | . 14 14 14 14 Energy Gun 22 | . 28 18 28 22 Ballistic Gun 4 | . . 8 . . Peak Build Rating 14 | 6 7 13 13 14 Average Rating 9 | 3 6 9 11 13 On Entrance 7 | . 6 7 10 13 Avg Prop Armor Cover (%) . | . . . . . Naked Turns . | . . . . . Heaviest Build 23 | 13 14 17 20 23 Greatest Support 26 | 26 26 26 20 20 Greatest Overweight (x) 1 | 1 . . . 1 Average Overweight (x) . | . . . . . Largest Inventory Capacity 10 | 8 8 10 10 10 Average Capacity 8 | 7 8 8 9 10 Most Carried 10 | 5 5 7 10 9 Average Carried 5 | 3 4 4 5 8 Final Capacity 10 | 8 8 8 10 10 Final Carried 9 | 4 5 5 8 9 Class Distribution -------------------- 61% | Mutant 38% | Scavenger-Mutant Dominant Class ---------------- Mutant | -10/Materials Mutant | -10/Mines Scavenger-Mutant | -10/Exiles Mutant | -9/Mines Resources | -11 -10 -10 -10 -9 ----------- Run | Yrd Mat Min Exi Min Matter Collected 444 | 241 47 156 . . Remotely . | . . . . . Salvage Created 444 | . 47 397 . . Parts 22 | . 4 18 . . Haulers Intercepted . | . . . . . Recyclers Shooed . | . . . . . Parts Field Recycled . | . . . . . Retrieved Matter . | . . . . . Parts Self-Destructed . | . . . . . Prevented . | . . . . . Parts Restored . | . . . . . Kills | -11 -10 -10 -10 -9 ------- Run | Yrd Mat Min Exi Min Combat Hostiles Destroyed 13 | . 3 10 . . Guns 13 | . 3 10 . . Classes Destroyed 3 | . 1 2 . . Swarmer 4 | . 3 1 . . Grunt 8 | . . 8 . . Assembled 1 | . . 1 . . Best Kill Streak 3 | . 3 3 . . Combat Bots Only 3 | . 3 3 . . Max Kills in Single Turn 1 | . 1 1 . . Gunslinging . | . . . . . Exploded . | . . . . . Melee . | . . . . . Uniques/NPCs Destroyed . | . . . . . Combat | -11 -10 -10 -10 -9 -------- Run | Yrd Mat Min Exi Min Hostile Shots Fired 100 | . 8 84 . 8 Missed 32 | . 6 26 . . Hits 68 | . 2 58 . 8 Projectile 68 | . 2 58 . 8 AOE 8 | . . . . 8 Critical Strikes 2 | . . 2 . . Damage Taken 1032 | . 42 672 . 318 Core 255 | . 7 174 . 74 Absorbed by Shields . | . . . . . Core Remaining (%) 100 | 100 . . . . Volleys Fired 69 | . 19 47 . 3 Largest 2 | . 2 2 . 2 Hottest 98 | . 80 95 . 98 Shots Fired 119 | . 38 77 . 4 Gun 116 | . 38 77 . 1 Cannon . | . . . . . Launcher 3 | . . . . 3 Special . | . . . . . Kinetic 29 | . . 29 . . Thermal 70 | . 26 43 . 1 Explosive 3 | . . . . 3 Electromagnetic 17 | . 12 5 . . Robot Hit Streak 7 | . 5 7 . 7 Robot Miss Streak 6 | . 3 6 . 2 Penetration Max . | . . . . . Secondary Targets . | . . . . . Shots Hit Robots 43 | . 7 34 . 2 Core Hits 27 | . 3 20 . 4 Critical Kills . | . . . . . Critical Parts Destroyed . | . . . . . Critical Strikes . | . . . . . Melee Attacks . | . . . . . Impact . | . . . . . Slashing . | . . . . . Piercing . | . . . . . Sneak Attacks . | . . . . . Combat Hostiles . | . . . . . Follow-up Attacks . | . . . . . Damage Inflicted 691 | . 164 476 . 51 Guns 581 | . 90 476 . 15 Cannons . | . . . . . Explosions 110 | . 74 . . 36 Melee . | . . . . . Ramming . | . . . . . Kinetic 108 | . . 108 . . Thermal 482 | . 109 358 . 15 Explosive 36 | . . . . 36 Electromagnetic 65 | . 55 10 . . Impact . | . . . . . Slashing . | . . . . . Piercing . | . . . . . Highest Corruption . | . . . . . Average Corruption . | . . . . . Corruption Purged . | . . . . . Corruption Blocked . | . . . . . Overload Shots . | . . . . . Overflow Damage 17 | . 10 . . 7 Projectiles . | . . . . . Explosions 17 | . 10 . . 7 Melee . | . . . . . Knockbacks . | . . . . . Impact . | . . . . . Kinetic . | . . . . . Secondary . | . . . . . Self-Inflicted Damage 62 | . 29 . . 33 Shots 2 | . 1 . . 1 Rammed . | . . . . . Targets Rammed . | . . . . . Kicked . | . . . . . Crushed . | . . . . . Highest Temperature 214 | . 214 186 . . Average Temperature 67 | . 81 59 . . Received Heat Transfer 300 | . . 300 . . Siege Activations . | . . . . . Martial Activations . | . . . . . Shielding Activations . | . . . . . Robots Disrupted . | . . . . . Combat Hostiles . | . . . . . Robots Corrupted . | . . . . . Combat Hostiles . | . . . . . Parts Fried . | . . . . . Impact Corruptions . | . . . . . Robots Melted . | . . . . . Combat Hostiles . | . . . . . Parts Melted 3 | . . 3 . . Heat Transferred 906 | . 175 694 . 37 Parts Sabotaged . | . . . . . Parts Stolen . | . . . . . Parts Stripped . | . . . . . Power Chain Reactions 2 | . 2 . . . Alert | -11 -10 -10 -10 -9 ------- Run | Yrd Mat Min Exi Min Maximum Alert Level . | . . . . . Low Security (%) 100 | 100 100 100 . 100 Level 1 . | . . . . . Level 2 . | . . . . . Level 3 . | . . . . . Level 4 . | . . . . . Level 5 . | . . . . . High Security . | . . . . . Max Security . | . . . . . Peak Influence 124 | . 80 124 . 4 Initial 18 | . . 18 . . Average 35 | . 37 39 . . Influence Increases 487 | . 108 360 . 19 Destroy 0b10 Robot/C 340 | . 60 280 . . Destroy 0b10 Robot/NC 5 | . . 5 . . Destroy Leader 60 | . 10 50 . . Allied During Kill 10 | . . 10 . . Disable Machine 30 | . 15 15 . . Destroy Structure 27 | . 8 . . 19 Lose Combat Pursuer 15 | . 15 . . . Influence Decreases 486 | . 60 352 56 18 Entered New Map 86 | . . 30 56 . Time Decay 342 | . 60 272 . 10 Lost Part 38 | . . 30 . 8 Lost Ally 20 | . . 20 . . Squads Dispatched 1 | . . 1 . . Investigation . | . . . . . Extermination . | . . . . . Reinforcement . | . . . . . Assault 1 | . . 1 . . Garrison . | . . . . . Intercept . | . . . . . Searches Triggered . | . . . . . Construction Impeded . | . . . . . Haulers Reinforced . | . . . . . Active Scanning Responses . | . . . . . Cargo Convoy Interrupts . | . . . . . Stealth | -11 -10 -10 -10 -9 --------- Run | Yrd Mat Min Exi Min Distress Signals . | . . . . . Communications Jammed . | . . . . . Distress Signals . | . . . . . Times Spotted 24 | . 5 17 . 2 Peak Tracking Total 5 | . 3 5 . 2 Tactical Retreats 2 | . 1 1 . . Traps | -11 -10 -10 -10 -9 ------- Run | Yrd Mat Min Exi Min Traps Triggered . | . . . . . Indirectly . | . . . . . Trap Hack Attempts . | . . . . . Triggered . | . . . . . Disarmed . | . . . . . Reprogrammed . | . . . . . Reused . | . . . . . Traps Extracted . | . . . . . Installed . | . . . . . Triggered . | . . . . . Machines | -11 -10 -10 -10 -9 ---------- Run | Yrd Mat Min Exi Min Machines Disabled 2 | . 1 1 . . Max in Single Turn 1 | . 1 1 . . Machines Repaired . | . . . . . Machines Dismantled . | . . . . . Machines Sabotaged . | . . . . . Overloaded Fab Kills . | . . . . . Hacking | -11 -10 -10 -10 -9 --------- Run | Yrd Mat Min Exi Min Machines Accessed 4 | . . . 4 . Terminals . | . . . . . Fabricators . | . . . . . Repair Stations . | . . . . . Recycling Units . | . . . . . Scanalyzers . | . . . . . Garrison Access . | . . . . . Total Hacks 21 | . . . 21 . Successful 21 | . . . 21 . Failed . | . . . . . Catastrophic . | . . . . . Database Lockouts . | . . . . . Manual 2 | . . . 2 . Terminals . | . . . . . Fabricators . | . . . . . Repair Stations . | . . . . . Recycling Units . | . . . . . Scanalyzers . | . . . . . Garrison Access . | . . . . . Terminal Hacks 21 | . . . 21 . Record 21 | . . . 21 . Fabricator Hacks . | . . . . . Repair Station Hacks . | . . . . . Recycling Unit Hacks . | . . . . . Scanalyzer . | . . . . . Garrison Access Hacks . | . . . . . Unauthorized Hacks . | . . . . . Terminals . | . . . . . Fabricators . | . . . . . Repair Stations . | . . . . . Recycling Units . | . . . . . Scanalyzers . | . . . . . Garrison Access . | . . . . . Data Cores Recovered . | . . . . . Used . | . . . . . Hacking Detections . | . . . . . Full Trace Events . | . . . . . Feedback Events . | . . . . . Feedback Blocked . | . . . . . Robot Schematics Acquired . | . . . . . Robots Built . | . . . . . Authchips . | . . . . . Time . | . . . . . Total Robot Build Rating . | . . . . . Part Schematics Acquired . | . . . . . Parts Built . | . . . . . Authchips . | . . . . . Time . | . . . . . Total Part Build Rating . | . . . . . Part Studies Acquired . | . . . . . Parts Repaired . | . . . . . Time . | . . . . . Parts Recycled . | . . . . . Recycled Matter . | . . . . . Retrieved Matter . | . . . . . Retrieved Components . | . . . . . Parts Scanalyzed . | . . . . . Part Schematics Acquired . | . . . . . Parts Damaged . | . . . . . Bothacking | -11 -10 -10 -10 -9 ------------ Run | Yrd Mat Min Exi Min Used RIF Installer . | . . . . . Robots Hacked . | . . . . . Non-combat . | . . . . . Combat . | . . . . . Robot Hacks Applied . | . . . . . Relay Couplers Released . | . . . . . Fabnet Peak Effective % . | . . . . . Robots Rewired . | . . . . . Allies Hacked . | . . . . . Hacks Repelled . | . . . . . Allies | -11 -10 -10 -10 -9 -------- Run | Yrd Mat Min Exi Min Total Allies 1 | . . 1 . . Largest Group 1 | . . 1 . . Highest-Rated Group 31 | . . 31 . . Highest-Rated Ally 31 | . . 31 . . Total Orders . | . . . . . Ally Attacks 17 | . . 17 . . Total Damage 294 | . . 294 . . Kills 6 | . . 6 . . Allies Corrupted . | . . . . . Allies Melted . | . . . . . Intel | -11 -10 -10 -10 -9 ------- Run | Yrd Mat Min Exi Min Active Infowar (turns) 805 | . 177 628 . . Structural 805 | . 177 628 . . Robot Analysis Total . | . . . . . Derelict Logs Recovered . | . . . . . Drone Launches . | . . . . . Drone Recoveries . | . . . . . Exploration | -11 -10 -10 -10 -9 ------------- Run | Yrd Mat Min Exi Min Turns Passed 1476 | 42 191 794 404 45 Spaces Moved 1069 | 34 139 538 332 26 Core 12 | 12 . . . . Treads . | . . . . . Legs 797 | . . 439 332 26 Wheels 260 | 22 139 99 . . Hover . | . . . . . Flight . | . . . . . Fastest Speed 50 | 50 90 90 120 120 Average Speed 112 | 78 90 114 120 138 Slowest Speed 190 | 100 90 120 120 190 Overloaded Moves . | . . . . . Propulsion Burnouts . | . . . . . Robots Hopped . | . . . . . Potential Cave-ins . | . . . . . Cave-ins Triggered . | . . . . . Exploration Rate (%) 37 | 4 32 79 63 10 Regions Visited 4 Branch Regions 3 Pre-discovered Areas 1 | . . . 1 . Known Exits Taken . | . . . . . Unknown Exits Taken 4 | 1 1 1 1 . Scrap Searched 1 | . . 1 . . Spaces Dug . | . . . . . Terrain Destroyed 35 | . 7 . . 28 Melee . | . . . . . Projectile . | . . . . . AOE 35 | . 7 . . 28 Terrain Rammed . | . . . . . Walls Destroyed . | . . . . . Machines Disabled . | . . . . . Actions | -11 -10 -10 -10 -9 --------- Run | Yrd Mat Min Exi Min Total 1226 | 48 165 643 339 31 Wait 31 | . 3 28 . . Move 1065 | 33 138 537 331 26 Hop . | . . . . . Pick Up 25 | 9 2 10 3 1 Fast Attach 1 | 1 . . . . Attach 10 | 5 1 4 . . Detach . | . . . . . Swap 14 | . 2 10 1 1 Drop 11 | . . 7 4 . Fire 69 | . 19 47 . 3 Melee . | . . . . . Ram . | . . . . . Kick . | . . . . . Crush . | . . . . . Escape Stasis . | . . . . . Rewire . | . . . . . Trap . | . . . . . Miscellaneous . | . . . . . Route ------- -11/Scrapyard -10/Materials -10/Mines -10/Exiles (discovered 2 exits: [*Min x2]) -9/Mines History --------- Turn | Location | Event 14 | -11/Scrapyard | Discovered new exit (range 15) 43 | -11/Scrapyard | Entered Materials 219 | -10/Materials | Discovered new exit (range 7) 234 | -10/Materials | Entered Mines 274 | -10/Mines | Met a Derelict testing a Signal Generator 306 | -10/Mines | Build established: Mutant 372 | -10/Mines | Lost 3 parts (1n2w) 770 | -10/Mines | Excavation squad dispatched 770 | -10/Mines | A large section of the Mines collapsed 919 | -10/Mines | Core integrity fell below 50% 1023 | -10/Mines | Deemed a non-threat by the Exiles lab entrance 1023 | -10/Mines | Discovered new exit (range 5) 1028 | -10/Mines | Entered Exiles 1046 | -10/Exiles | Discovered new exit (range 15) 1087 | -10/Exiles | Met 8R-AWN 1108 | -10/Exiles | Met EX-HEX 1151 | -10/Exiles | Met EX-BIN 1172 | -10/Exiles | Aligned with FarCom system 1174 | -10/Exiles | Given EX-Vault access code 1191 | -10/Exiles | Build established: Scavenger-Mutant 1222 | -10/Exiles | Opened EX-Vault 1232 | -10/Exiles | Found Prototype Flight Unit 1280 | -10/Exiles | Warned to stay clear of 0b10 Research branches 1323 | -10/Exiles | Met EX-DEC 1338 | -10/Exiles | Learned location of Zion (-6) 1419 | -10/Exiles | Discovered new exit (range 14) 1432 | -10/Exiles | Left Exiles lab with Flying Fortress v7 1432 | -10/Exiles | Entered Mines 1433 | -9/Mines | Assembled infested the area 1438 | -9/Mines | Assisted by a Guerilla fighting off Assembled 1454 | -9/Mines | Received a Rocket Launcher from a helpful Derelict 1473 | -9/Mines | Core integrity fell below 20% 1477 | -9/Mines | Destroyed by D-53 Grenadier with Mini Grenade Launcher Last Messages --------------- 01433_ ALERT: Infestation in the mines, dispatching Demolisher response squad. 01438_ A derelict emerges from the shadows: "You need to get out of here! I've been tracking a group of Assembled to figure out where they're coming from, and they're closing on this area, come on!" 01448_ A derelict emerges from the shadows. 01449_ JH-PZ8(g): "Some of my friends down here think you need a mining laser when you travel the depths." 01450_ JH-PZ8(g): "They are crazy." 01451_ JH-PZ8(g): "Everyone knows a good old rocket launcher goes a long way." 01452_ JH-PZ8(g): "Need to get rid of a swarm? Done. Need a big hole in the wall? Done." 01453_ JH-PZ8(g): "Need a small hole in the wall? Leave that to the mining laser wimps, I say!" 01454_ JH-PZ8(g): "Would you like a rocket launcher? I know I would if I were you, so I'm going to lend you mine." 01454_ JH-PZ8(g) slips back into the shadows. 01455_ Acquired Rocket Launcher. 01456_ HR-GLB(h): "I'll hold them off! Go on ahead or try to find another way!" 01456_ HR-GLB(h) destroyed. 01473_ The unstable cave ceiling collapses. 01474_ Particle Gun destroyed. 01476_ Aluminum Leg destroyed. 01476_ Destroyed Aluminum Leg. 01476_ Rocket Launcher destroyed. 01476_ Destroyed Rocket Launcher. Map ----- +----------------------------------------------------+ | | | | | | | | | | | | | | | | | | | | | | | | | ?????????????????????????????????????????????????? | | ?????????????????????????????????????????????????? | | ?????????????????????????????????????????????????? | | ?????????????????????????????????????????????????? | | ?????????????????????????????##??????????????????? | | ???????????#????????###????## ##?????????????????? | | ???????????# ??????## ##### #########?????????? | | ??????????## ??????# ## ??????????? | | ??????????# ?????# ?????????????? | | ??????????# ???## #?????????????????? | | ?????#??#?# ???# #??????????????????? | | ????? ## ??# #??????????????????? | | ????? "$ # ?# #??????????????????? | | ???????# ]=! ### @ #??????????????????? | | ???????? *%! ### #??????????????????? | | ??????????# ## #??????????????????? | | ???????????# # d ##??????????????????? | | ??????????????## d ##???????????????????? | | ???????????????## #????????????????????? | | ????????????????#### #????????????????????? | | ???????????????????## #????????????????????? | | ????????????????????## #????????????????????? | | ?????????????????????## #????????????????????? | | ??????????????????????## ##????????????????????? | | ???????????????????????#####?????????????????????? | | ?????????????????????????????????????????????????? | | ?????????????????????????????????????????????????? | | ?????????????????????????????????????????????????? | | ?????????????????????????????????????????????????? | | ?????????????????????????????????????????????????? | | ?????????????????????????????????????????????????? | | ?????????????????????????????????????????????????? | | ?????????????????????????????????????????????????? | | ?????????????????????????????????????????????????? | | ?????????????????????????????????????????????????? | | ?????????????????????????????????????????????????? | | ?????????????????????????????????????????????????? | | ?????????????????????????????????????????????????? | +----------------------------------------------------+ Best States ------------- Heat Dissipation 39 Energy Generation 10 Energy Capacity 250 Matter Stores 300 Matter Capacity 300 Sight Range 16 Terrain Scan Density 10 Evasion (%) 55 Item Schematics ----------------- None Robot Schematics ------------------ None Fabricated ------------ Nothing Repaired ---------- Nothing Studied --------- None Alien Tech Used ----------------- None Achievements -------------- Sixth Sense Challenges ------------ None Game ------ Seed AuthchipSurveybotDisplacer Manual? 0 Play Time 00:17:34 Cumulative 22.0 hours Start 2025.10.30 @ 23:50:44 End 2025.10.31 @ 00:08:03 Sessions 1 Manual Loads 0 Difficulty Rogue Special Mode None Game No. 26 Rogue 26 Adventurer 0 Explorer 0 Win Type - Total 0 Types 0/0/0/0/0/0/0/0/0/0 Lore% 10 Gallery% 21 Achievement% 13 Wizard Run 0 Options --------- Layout 0 ASCII 0 Keyboard 0 Movement Mouse Keybinds 0 Fullscreen 2 Font 24/Terminus Map View 183x50 Zoom Use 0% Tactical HUD 1 Map Filters NONE Filters NONE Steam 1 RUN: 60f8e9f2-a8d7-4853-8f53-98c6423aeac1